fUST/lending_fUST_20250813
["ID","MTS","AMOUNT","RATE_DAILY","PERIOD"]
[378952855,1755081042971,-500.0,0.0002822,2]
[378952856,1755081042981,-500.0,0.0002822,2]
[378952857,1755081042991,-274.33543261,0.0002822,2]
[378952858,1755081043000,-151.0,0.0002822,2]
[378952859,1755081043010,-151.0,0.0002822,2]
[378952860,1755081043019,-500.0,0.0002822,2]
[378952861,1755081043028,-500.0,0.0002822,2]
[378952862,1755081043038,-151.0,0.0002822,2]
[378952863,1755081043048,-151.0,0.0002822,2]
[378952864,1755081043057,-500.0,0.0002822,2]
[378952865,1755081043067,-500.0,0.0002822,2]
[378952866,1755081043076,-151.0,0.0002822,2]
[378952867,1755081043085,-500.0,0.0002822,2]
[378952868,1755081043095,-151.33647579,0.0002822,2]
[378952869,1755081043104,-151.0,0.0002822,2]
[378952870,1755081043113,-500.0,0.0002822,2]
[378952871,1755081043122,-500.0,0.0002822,2]
[378952872,1755081043132,-151.0,0.0002822,2]
[378952873,1755081043141,-500.0,0.0002822,2]
[378952874,1755081043150,-800.0,0.00028226,2]
[378952875,1755081043160,-1100.0,0.00028233,2]
[378952876,1755081043169,-1100.0,0.0002824,2]
[378952877,1755081043179,-800.0,0.00028264,2]
[378952878,1755081043189,-800.0,0.00028269,2]
[378952879,1755081043198,-1100.0,0.00028275,2]
[378952880,1755081043207,-200.0,0.00028278,120]
[378952881,1755081043216,-200.0,0.00028291,120]
[378952882,1755081043226,-1100.0,0.00028295,2]
[378952883,1755081043236,-800.0,0.00028331,2]
[378952884,1755081043246,-200.0,0.00028352,120]
[378952885,1755081043255,-299.066887,0.0002838,7]
[378952886,1755081043265,-151.0,0.0002838,7]
[378952887,1755081043280,-407.820498,0.0002838,7]
[378952888,1755081043290,-407.820498,0.0002838,7]
[378952889,1755081043300,-800.0,0.00028398,2]
[378952890,1755081043309,-200.0,0.000284,120]
[378952891,1755081043318,-510.11456346,0.00028405,2]
[378952892,1755081043328,-1100.0,0.00028409,2]
[378952893,1755081043338,-200.0,0.00028423,20]
[378952894,1755081043347,-200.0,0.00028423,20]
[378952895,1755081043356,-200.0,0.00028423,20]
[378952896,1755081043366,-200.0,0.00028423,20]
[378952897,1755081043375,-200.0,0.00028423,20]
[378952898,1755081043385,-200.0,0.00028423,20]
[378952899,1755081043394,-200.0,0.00028423,20]
[378952900,1755081043403,-200.0,0.00028423,20]
[378952901,1755081043412,-200.0,0.00028423,20]
[378952902,1755081043422,-200.0,0.00028423,20]
[378952903,1755081043431,-200.0,0.00028423,20]
[378952904,1755081043440,-200.0,0.00028423,20]
[378952905,1755081043450,-200.0,0.00028423,20]
[378952906,1755081043459,-200.0,0.00028423,20]
[378952907,1755081043468,-200.0,0.00028423,20]
[378952908,1755081043477,-200.0,0.00028423,20]
[378952909,1755081043487,-200.0,0.00028423,20]
[378952910,1755081043496,-200.0,0.00028423,20]
[378952911,1755081043505,-200.0,0.00028423,20]
[378952912,1755081043515,-200.0,0.00028423,20]
[378952913,1755081043524,-200.0,0.00028423,20]
[378952914,1755081043533,-200.0,0.00028423,20]
[378952915,1755081043543,-208.0,0.00028423,20]
[378952916,1755081043642,-151.0,0.00028444,7]
[378952917,1755081043653,-1060.0,0.00028445,2]
[378952918,1755081043663,-1100.0,0.00028468,2]
[378952919,1755081043673,-200.0,0.00028469,120]
[378952920,1755081043684,-500.0,0.00028473,5]
[378952921,1755081043693,-217.126677,0.00028492,7]
[378952922,1755081043703,-151.0,0.00028492,7]
[378952923,1755081043712,-151.0,0.00028492,7]
[378952924,1755081043724,-2136.99911589,0.00028492,21]
[378952925,1755081043734,-5000.0,0.00028492,18]
[378952926,1755081043744,-5000.0,0.00028492,20]
[378952927,1755081043754,-5000.0,0.00028492,15]
[378952928,1755081043764,-5000.0,0.00028492,16]
[378952929,1755081043774,-500.0,0.00028494,2]
[378952930,1755081043783,-151.44429891,0.00028494,2]
[378952931,1755081043793,-500.0,0.00028494,2]
[378952932,1755081043803,-500.0,0.00028494,2]
[378952933,1755081043813,-500.0,0.00028494,2]
[378952934,1755081043823,-151.90065225,0.00028494,2]
[378952935,1755081043832,-259.9928,0.00028494,2]
[378952936,1755081043841,-500.0,0.00028494,2]
[378952937,1755081043852,-574.54813275,0.00028494,2]
[378952938,1755081043862,-151.0,0.00028494,2]
[378952939,1755081043870,-500.0,0.00028494,2]
[378952940,1755081043880,-500.0,0.00028494,2]
[378952941,1755081043889,-151.0,0.00028494,2]
[378952942,1755081043899,-500.0,0.00028494,2]
[378952943,1755081043908,-500.0,0.00028494,2]
[378952944,1755081043918,-500.0,0.00028494,2]
[378952945,1755081043927,-500.0,0.00028494,2]
[378952946,1755081043936,-6254.951545,0.00028498,18]
[378952947,1755081043945,-127407.23909107,0.000285,30]
[378952948,1755081043955,-151.0,0.000285,7]
[378952949,1755081043964,-159.899081,0.000285,7]
[378952950,1755081043973,-216.72950928,0.000285,30]
[378952951,1755081043983,-843.29866057,0.000285,30]
[378952952,1755081043992,-232.03317797,0.000285,30]
[378952953,1755081044001,-417.15472785,0.000285,30]
[378952954,1755081044010,-528.09767282,0.000285,30]
[378952955,1755081044020,-1586.68655571,0.000285,7]
[378952956,1755081044029,-215.55264861,0.000285,30]
[378952957,1755081044038,-160.0,0.000285,30]
[378952958,1755081044048,-160.0,0.000285,30]
[378952959,1755081044057,-151.0,0.00028528,7]
[378952960,1755081044067,-407.820498,0.00028528,7]
[378952961,1755081044076,-407.820498,0.00028528,7]
[378952962,1755081044085,-5000.0,0.00028528,17]
[378952963,1755081044094,-5000.0,0.00028528,16]
[378952964,1755081044103,-5000.0,0.00028528,19]
[378952965,1755081044113,-5000.0,0.00028528,19]
[378952966,1755081044123,-5000.0,0.00028528,16]
[378952967,1755081044132,-500.0,0.00028547,2]
[378952968,1755081044141,-800.0,0.00028561,2]
[378952969,1755081044150,-151.0,0.00028565,7]
[378952970,1755081044159,-800.0,0.00028567,2]
[378952971,1755081044168,-500.0,0.00028578,2]
[378952972,1755081044177,-2524.43,0.00028582,15]
[378952973,1755081044187,-800.0,0.00028596,2]
[378952974,1755081044195,-29685.26870331,0.000286,2]
[378952975,1755081044205,-800.0,0.00028613,2]
[378952976,1755081044214,-1100.0,0.00028659,2]
[378952977,1755081044223,-24715.6112974,0.00028673,10]
[378952978,1755081044233,-159.229451,0.0002868,10]
[378952979,1755081044242,-196.470481,0.0002868,10]
[378952980,1755081044252,-2524.43,0.00028682,15]
[378952981,1755081044261,-200.0,0.00028694,120]
[378952982,1755081044270,-216.72950928,0.000287,10]
[378952983,1755081044279,-843.29866057,0.000287,10]
[378952984,1755081044288,-417.15472785,0.000287,10]
[378952985,1755081044297,-528.09767282,0.000287,10]
[378952986,1755081044307,-215.55264861,0.000287,10]
[378952987,1755081044317,-160.0,0.000287,10]
[378952988,1755081044326,-160.0,0.000287,10]
[378952989,1755081044335,-190.0,0.00028713,2]
[378952990,1755081044345,-800.0,0.00028747,2]
[378952991,1755081044354,-2000.0,0.00028767,120]
[378952992,1755081044364,-2000.0,0.00028767,120]
[378952993,1755081044373,-500.0,0.00028768,2]
[378952994,1755081044383,-500.0,0.00028768,2]
[378952995,1755081044392,-500.0,0.00028768,2]
[378952996,1755081044401,-500.0,0.00028768,2]
[378952997,1755081044410,-544.23939778,0.00028768,2]
[378952998,1755081044419,-151.0,0.00028768,2]
[378952999,1755081044428,-500.0,0.00028768,2]
[378953000,1755081044437,-500.0,0.00028768,2]
[378953001,1755081044446,-152.3066297,0.00028768,2]
[378953002,1755081044456,-500.0,0.00028768,2]
[378953003,1755081044465,-211.92498305,0.00028768,2]
[378953004,1755081044474,-560.35408176,0.00028768,2]
[378953005,1755081044483,-500.0,0.00028768,2]
[378953006,1755081044492,-2524.43,0.00028782,15]
[378953007,1755081044501,-200.0,0.00028792,120]
[378953008,1755081044510,-167.92434416,0.000288,7]
[378953009,1755081044520,-4664.28,0.000288,2]
[378953010,1755081044529,-200.0,0.00028816,120]
[378953011,1755081044538,-200.0,0.00028823,120]
[378953012,1755081044548,-500.0,0.00028848,2]
[378953013,1755081044557,-1000.0,0.00028865,7]
[378953014,1755081044567,-800.0,0.00028867,2]
[378953015,1755081044577,-200.0,0.0002887,30]
[378953016,1755081044587,-1100.0,0.00028876,2]
[378953017,1755081044596,-2524.43,0.00028882,15]
[378953018,1755081044606,-200.0,0.000289,5]
[378953019,1755081044615,-159.229451,0.00028903,2]
[378953020,1755081044625,-196.470481,0.00028903,2]
[378953021,1755081044636,-200.0,0.00028918,120]
[378953022,1755081044650,-800.0,0.00028925,2]
[378953023,1755081044659,-1100.0,0.00028932,2]
[378953024,1755081044668,-800.0,0.00028948,2]
[378953025,1755081044678,-200.0,0.00028957,120]
[378953026,1755081044688,-4362.47718713,0.00028958,2]
[378953027,1755081044698,-200.0,0.0002896,120]
[378953028,1755081044709,-3469.35690494,0.00028961,2]
[378953029,1755081044718,-1169.04129151,0.00028961,2]
[378953030,1755081044728,-200.0,0.00028983,120]
[378953031,1755081044739,-1100.0,0.00028984,2]
[378953033,1755081044749,-1160.0,0.00028993,2]
[378953034,1755081044759,-875.04811019,0.00029,2]
[378953035,1755081044769,-3000.0,0.00029,7]
[378953037,1755081044779,-216.72950928,0.00029,10]
[378953038,1755081044789,-843.29866057,0.00029,10]
[378953039,1755081044799,-232.03317797,0.00029,10]
[378953040,1755081044810,-417.15472785,0.00029,10]
[378953041,1755081044820,-528.09767282,0.00029,10]
[378953042,1755081044830,-160.0,0.00029,10]
[378953043,1755081044840,-160.0,0.00029,10]
[378953044,1755081044850,-1000.0,0.00029021,5]
[378953045,1755081044860,-562.5,0.00029031,15]
[378953046,1755081044871,-408.0,0.00029032,2]
[378953047,1755081044880,-636.0,0.00029032,2]
[378953049,1755081044890,-1300.03,0.00029041,6]
[378953050,1755081044900,-500.0,0.00029042,2]
[378953051,1755081044910,-500.0,0.00029042,2]
[378953052,1755081044919,-500.0,0.00029042,2]
[378953053,1755081044929,-524.32682312,0.00029042,2]
[378953055,1755081044946,-151.0,0.00029042,2]
[378953057,1755081044955,-558.92117116,0.00029042,2]
[378953058,1755081044964,-500.0,0.00029042,2]
[378953059,1755081044973,-443.80029098,0.00029042,2]
[378953060,1755081044983,-500.0,0.00029042,2]
[378953061,1755081044993,-151.0,0.00029056,7]
[378953062,1755081045002,-151.0,0.00029056,7]
[378953063,1755081045012,-151.0,0.00029056,7]
[378953064,1755081045021,-151.0,0.00029056,7]
[378953065,1755081045031,-217.519444,0.00029056,7]
[378953066,1755081045040,-407.820498,0.00029056,7]
[378953067,1755081045050,-407.820498,0.00029056,7]
[378953068,1755081045142,-407.820498,0.00029056,7]
[378953069,1755081045155,-407.820498,0.00029056,7]
[378953070,1755081045174,-407.820498,0.00029056,7]
[378953071,1755081045184,-407.820498,0.00029056,7]
[378953072,1755081045193,-407.820498,0.00029056,7]
[378953073,1755081045202,-407.820498,0.00029056,7]
[378953074,1755081045212,-407.820498,0.00029056,7]
[378953075,1755081045221,-407.820498,0.00029056,7]
[378953076,1755081045230,-407.820498,0.00029056,7]
[378953077,1755081045240,-407.820498,0.00029056,7]
[378953078,1755081045251,-407.820498,0.00029056,7]
[378953079,1755081045261,-407.820498,0.00029056,7]
[378953080,1755081045279,-407.820498,0.00029056,7]
[378953081,1755081045289,-407.820493,0.00029056,7]
[378953083,1755081045298,-1140844.85540253,0.00029061,20]
[378953085,1755081045307,-50004.56512194,0.00029061,7]
[378953087,1755081045317,-1711.42628934,0.00029061,2]
[378953089,1755081045326,-1589.0,0.00029061,3]
[378953091,1755081045336,-1863.74384617,0.00029061,2]
[378953093,1755081045345,-11069.60661316,0.00029061,7]
[378953095,1755081045354,-1781.87868339,0.00029061,3]
[378953097,1755081045364,-188.61692665,0.00029061,2]
[378953099,1755081045373,-1392.41825997,0.00029061,2]
[378953101,1755081045383,-5876.17376758,0.00029061,2]
[378953103,1755081045392,-10651.62153553,0.00029061,2]
[378953104,1755081045401,-1529.89692786,0.00029061,14]
[378953105,1755081045411,-223.77970264,0.00029061,15]
[378953107,1755081045420,-1509.50345702,0.00029061,15]
[378953108,1755081045430,-157218.00034732,0.00029061,20]
[378953109,1755081045440,-424620.76573248,0.00029061,20]
[378953110,1755081045449,-506.15400846,0.00029061,2]
[378953111,1755081045458,-178.79119065,0.00029061,2]
[378953112,1755081045468,-30364.5532091,0.00029061,2]
[378953113,1755081045477,-90968.49281881,0.00029061,2]
[378953115,1755081045488,-300.0,0.00029061,2]
[378953116,1755081045498,-3869.64641003,0.00029061,2]
[378953117,1755081045507,-807.41248212,0.00029061,2]
[378953118,1755081045517,-254.0688832,0.00029061,2]
[378953119,1755081045526,-296.03784968,0.00029061,2]
[378953120,1755081045535,-326.08352502,0.00029061,2]
[378953121,1755081045545,-291.02176555,0.00029061,2]
[378953122,1755081045555,-51579.79674846,0.00029061,2]
[378953123,1755081045564,-635.43387702,0.00029061,2]
[378953124,1755081045574,-1357.61283211,0.00029061,2]
[378953125,1755081045583,-156.17566896,0.00029061,2]
[378953126,1755081045592,-3045.07453427,0.00029061,2]
[378953127,1755081045601,-6274.78564193,0.00029061,2]
[378953128,1755081045610,-157.18936959,0.00029061,2]
[378953129,1755081045621,-192321.60339469,0.00029061,20]
[378953130,1755081045630,-25063.28709147,0.00029061,2]
[378953131,1755081045642,-161179.12145277,0.00029061,20]
[378953132,1755081045652,-649.34977892,0.00029061,2]
[378953133,1755081045662,-901.93185523,0.00029061,2]
[378953134,1755081045671,-2920.0,0.00029061,2]
[378953135,1755081045681,-200.88734596,0.00029061,2]
[378953136,1755081045692,-3138.45033379,0.00029061,2]
[378953137,1755081045701,-2341.57341289,0.00029061,2]
[378953138,1755081045711,-166.14621525,0.00029061,2]
[378953139,1755081045721,-2220.7093092,0.00029061,2]
[378953140,1755081045733,-171675.44637488,0.00029061,20]
[378953144,1755081046093,-500.0,0.0002822,2]
[378953145,1755081046104,-500.0,0.00028494,2]
[378953146,1755081046113,-2151.0,0.00029032,2]
[378953147,1755081046123,-50446.11765375,0.00029061,20]
[378953149,1755081046156,-500.0,0.00028768,2]
[378953150,1755081046165,-117469.66339209,0.00029061,20]
[378953151,1755081046178,-82587.84396039,0.00029061,20]
[378953168,1755081047041,-972.0,0.00023032,2]
[378953169,1755081047051,-2200.0,0.000249,2]
[378953170,1755081047060,-1002.103048,0.000284,2]
[378953171,1755081047069,-236.8236247,0.00029042,2]
[378953172,1755081047078,-1273.01752051,0.00029061,20]
[378953173,1755081047090,-1024.17007521,0.00029061,20]
[378953174,1755081047101,-2722.40192163,0.00029061,20]
[378953175,1755081047117,-3014.05974828,0.00029061,20]
[378953176,1755081047184,-355.7244777,0.00026032,2]
[378953177,1755081047195,-616.2755223,0.00026032,2]
[378953178,1755081047205,-243.28910902,0.00029032,2]
[378953179,1755081047225,-728.71089098,0.00029032,2]
[378953180,1755081047234,-840.28,0.00029051,3]
[378953181,1755081047243,-1747.05445824,0.00029061,20]
[378953182,1755081047255,-253.93744556,0.00029061,20]
[378953196,1755081518790,196.780281,0.00013699,2]
[378953197,1755081622708,160.0,0.00013699,2]
[378953198,1755081622756,260.0,0.00014247,2]
[378953199,1755081622814,356.90308597,0.00014795,2]
[378953200,1755081622842,3.09691403,0.00014795,2]
[378953201,1755081623187,460.0,0.00015342,2]
[378953202,1755081623662,560.0,0.0001589,2]
[378953203,1755081624019,660.0,0.00016438,2]
[378953204,1755081624337,760.0,0.00016986,2]
[378953205,1755081624658,860.0,0.00017534,2]
[378953215,1755081742176,160.0,0.00013699,2]
[378953216,1755081742494,260.0,0.00014247,2]
[378953217,1755081742844,360.0,0.00014795,2]
[378953218,1755081743443,460.0,0.00015342,2]
[378953219,1755081743785,560.0,0.0001589,2]
[378953220,1755081744137,660.0,0.00016438,2]
[378953221,1755081744505,760.0,0.00016986,2]
[378953222,1755081744851,860.0,0.00017534,2]
[378953227,1755081862130,160.0,0.00013699,2]
[378953228,1755081862775,260.0,0.00014247,2]
[378953229,1755081862885,360.0,0.00014795,2]
[378953230,1755081863119,460.0,0.00015342,2]
[378953231,1755081863446,560.0,0.0001589,2]
[378953232,1755081863764,660.0,0.00016438,2]
[378953233,1755081864120,760.0,0.00016986,2]
[378953234,1755081864433,860.0,0.00017534,2]
[378953245,1755081982224,160.0,0.00013699,2]
[378953246,1755081982544,260.0,0.00014247,2]
[378953247,1755081982871,360.0,0.00014795,2]
[378953248,1755081983220,460.0,0.00015342,2]
[378953249,1755081983494,560.0,0.0001589,2]
[378953250,1755081983843,455.29894963,0.00016438,2]
[378953274,1755082232681,-1200.0,0.00019899,2]
[378953275,1755082232692,-471.98973334,0.0002029,2]
[378953276,1755082232701,-200.0,0.00020894,20]
[378953277,1755082232712,-200.0,0.00020894,20]
[378953278,1755082232721,-200.0,0.00020894,20]
[378953279,1755082232730,-200.0,0.00020894,20]
[378953280,1755082232739,-480.0,0.00021774,2]
[378953281,1755082232749,-290.0,0.00022,2]
[378953282,1755082232758,-277.93,0.00022,2]
[378953283,1755082232768,-200.0,0.00022937,20]
[378953284,1755082232780,-200.0,0.00022937,20]
[378953285,1755082232789,-200.0,0.00022937,20]
[378953286,1755082232799,-200.0,0.00022937,20]
[378953287,1755082232807,-320.0,0.00022937,20]
[378953288,1755082232816,-237.09914471,0.00022963,2]
[378953289,1755082232826,-403.35,0.00023,2]
[378953290,1755082232835,-160.0,0.0002329,2]
[378953291,1755082232844,-160.0,0.0002329,2]
[378953292,1755082232854,-843.29866057,0.0002329,2]
[378953293,1755082232863,-232.03317797,0.0002329,2]
[378953294,1755082232873,-215.55264861,0.0002329,2]
[378953295,1755082232882,-216.72950928,0.0002329,2]
[378953296,1755082232892,-160.0,0.00023304,2]
[378953297,1755082232901,-256.97125483,0.00023408,2]
[378953298,1755082232911,-506.5291826,0.00023459,2]
[378953299,1755082232921,-972.0,0.00023597,2]
[378953300,1755082232931,-2151.0,0.00023597,2]
[378953301,1755082232940,-636.0,0.00023597,2]
[378953302,1755082232949,-408.0,0.00023597,2]
[378953303,1755082232959,-282.2,0.00023817,5]
[378953304,1755082232969,-156.81429898,0.000239,2]
[378953305,1755082232978,-513.9915926,0.00024,2]
[378953306,1755082232988,-232.03317797,0.00024,10]
[378953307,1755082232997,-156.81429898,0.00024186,2]
[378953308,1755082233008,-156.81429898,0.00024472,2]
[378953309,1755082233020,-2200.0,0.00024487,2]
[378953310,1755082233030,-250.0,0.000246,10]
[378953311,1755082233039,-380.0,0.00024658,2]
[378953312,1755082233049,-250.0,0.000247,10]
[378953313,1755082233059,-156.81429898,0.00024757,2]
[378953314,1755082233069,-250.0,0.000248,10]
[378953315,1755082233078,-7329.35572701,0.000249,2]
[378953316,1755082233091,-350.39961015,0.000249,2]
[378953350,1755082238600,-4852.79660952,0.000199,2]
[378953380,1755082240631,-4442.68302058,0.000199,2]
[378953394,1755082243735,-5046.02605,0.000199,2]
[378953416,1755082246647,-5825.7515279,0.000199,2]
[378953417,1755082246656,-11166.24847205,0.00021655,2]
[378953418,1755082246700,-9001.00873575,0.00021655,2]
[378953419,1755082246710,-20167.2572078,0.00023409,2]
[378953420,1755082246721,-4079.804,0.00024487,2]
[378953421,1755082246731,-11390.26978144,0.000249,2]
[378953422,1755082246741,-528.09767282,0.00024959,10]
[378953423,1755082246751,-4701.51,0.00024959,10]
[378953424,1755082246761,-3917.93,0.00024959,10]
[378953425,1755082246771,-19070.0251186,0.00024969,2]
[378953426,1755082246780,-1366.92031671,0.00024969,2]
[378953427,1755082246790,-500.0,0.00024969,2]
[378953428,1755082246801,-1366.92031671,0.00024969,2]
[378953429,1755082246810,-221.06916449,0.00024969,2]
[378953430,1755082246820,-1366.92031671,0.00024969,2]
[378953431,1755082246830,-1366.92031671,0.00024969,2]
[378953432,1755082246839,-1366.92031671,0.00024969,2]
[378953433,1755082246849,-1366.92031671,0.00024969,2]
[378953434,1755082246859,-500.0,0.00024969,2]
[378953435,1755082246868,-1366.92031671,0.00024969,2]
[378953436,1755082246878,-1366.92031671,0.00024969,2]
[378953437,1755082246887,-1366.92031671,0.00024969,2]
[378953438,1755082246898,-1366.92031671,0.00024969,2]
[378953439,1755082246908,-1366.92031671,0.00024969,2]
[378953440,1755082246918,-1366.92031671,0.00024969,2]
[378953441,1755082246927,-1366.92031671,0.00024969,2]
[378953442,1755082246937,-1366.92031671,0.00024969,2]
[378953443,1755082246947,-1366.92031671,0.00024969,2]
[378953444,1755082246957,-1366.92031671,0.00024969,2]
[378953445,1755082246967,-1366.92031671,0.00024969,2]
[378953446,1755082246976,-1366.92031671,0.00024969,2]
[378953447,1755082246986,-1412.48432727,0.00024969,2]
[378953448,1755082246996,-1412.48432727,0.00024969,2]
[378953449,1755082247006,-1412.48432727,0.00024969,2]
[378953450,1755082247019,-1412.48432727,0.00024969,2]
[378953451,1755082247041,-1412.48432727,0.00024969,2]
[378953452,1755082247054,-1412.48432727,0.00024969,2]
[378953453,1755082247065,-1412.48432727,0.00024969,2]
[378953454,1755082247077,-1412.48432727,0.00024969,2]
[378953455,1755082247090,-1412.48432727,0.00024969,2]
[378953456,1755082247102,-133490.17583,0.0002497,2]
[378953457,1755082247112,-500.0,0.00024973,2]
[378953458,1755082247122,-500.0,0.00024973,2]
[378953459,1755082247132,-498.00627211,0.00024973,2]
[378953460,1755082247141,-500.0,0.00024973,2]
[378953461,1755082247153,-500.0,0.00024973,2]
[378953462,1755082247164,-500.0,0.00024973,2]
[378953463,1755082247174,-500.27515932,0.00024973,2]
[378953464,1755082247184,-503.25000083,0.00024973,2]
[378953465,1755082247194,-500.0,0.00024973,2]
[378953466,1755082247206,-500.0,0.00024973,2]
[378953467,1755082247216,-635.86435527,0.00024973,2]
[378953468,1755082247226,-500.0,0.00024973,2]
[378953469,1755082247236,-500.0,0.00024979,2]
[378953470,1755082247247,-40438.07030408,0.0002499,2]
[378953471,1755082247257,-156.81429898,0.00025043,2]
[378953472,1755082247267,-301.90399245,0.00025045,2]
[378953473,1755082247277,-80417.07837816,0.00025133,2]
[378953477,1755082473369,196.780281,0.00013699,2]
[378954060,1755083431885,-1200.0,0.00019896,2]
[378954064,1755083431895,-300.0,0.00019896,2]
[378954067,1755083431905,-300.0,0.00019896,2]
[378954070,1755083431915,-300.0,0.00019896,2]
[378954073,1755083431926,-300.0,0.00019896,2]
[378954076,1755083431937,-447.84718256,0.00019898,2]
[378954079,1755083431947,-1200.0,0.00019899,2]
[378954082,1755083431956,-300.0,0.00019899,2]
[378954085,1755083431966,-18556.83118116,0.000199,2]
[378954088,1755083431976,-5078.0,0.0002,10]
[378954090,1755083431985,-50000.0,0.00020891,2]
[378954092,1755083431994,-200.0,0.00020891,20]
[378954095,1755083432003,-200.0,0.00020891,20]
[378954098,1755083432012,-200.0,0.00020891,20]
[378954100,1755083432021,-200.0,0.00020891,20]
[378954103,1755083432030,-18556.83118092,0.00021655,2]
[378954106,1755083432040,-167.72,0.00022,7]
[378954109,1755083432049,-185.29,0.00022,2]
[378954112,1755083432058,-2783.77,0.00022544,10]
[378954114,1755083432068,-2887.05,0.00022554,10]
[378954117,1755083432079,-417.15472785,0.00022554,10]
[378954120,1755083432088,-528.09767282,0.00022554,10]
[378954123,1755083432098,-500.0,0.00022564,2]
[378954127,1755083432108,-500.0,0.00022564,2]
[378954129,1755083432118,-500.0,0.00022564,2]
[378954132,1755083432128,-500.0,0.00022564,2]
[378954135,1755083432138,-500.0,0.00022564,2]
[378954138,1755083432147,-500.0,0.00022564,2]
[378954141,1755083432157,-500.0,0.00022564,2]
[378954144,1755083432166,-500.0,0.00022564,2]
[378954146,1755083432176,-500.0,0.00022564,2]
[378954149,1755083432185,-500.0,0.00022564,2]
[378954152,1755083432194,-500.0,0.00022564,2]
[378954154,1755083432204,-500.0,0.00022564,2]
[378954156,1755083432214,-306.17661597,0.00022564,2]
[378954158,1755083432223,-256.4355749,0.00022564,2]
[378954160,1755083432232,-500.0,0.00022564,2]
[378954162,1755083432241,-500.0,0.00022564,2]
[378954164,1755083432250,-500.0,0.00022564,2]
[378954166,1755083432260,-500.0,0.00022564,2]
[378954168,1755083432269,-500.0,0.00022564,2]
[378954170,1755083432279,-500.0,0.00022564,2]
[378954172,1755083432288,-500.0,0.00022564,2]
[378954174,1755083432298,-500.0,0.00022564,2]
[378954176,1755083432307,-500.0,0.00022564,2]
[378954178,1755083432317,-500.0,0.00022564,2]
[378954180,1755083432326,-500.0,0.00022564,2]
[378954182,1755083432335,-500.0,0.00022564,2]
[378954183,1755083432344,-500.0,0.00022564,2]
[378954185,1755083432353,-221.39120263,0.00022564,2]
[378954187,1755083432363,-500.0,0.00022564,2]
[378954189,1755083432372,-500.0,0.00022564,2]
[378954192,1755083432382,-500.0,0.00022564,2]
[378954194,1755083432395,-500.0,0.00022564,2]
[378954195,1755083432403,-500.0,0.00022564,2]
[378954197,1755083432413,-500.0,0.00022566,2]
[378954199,1755083432423,-200.0,0.00022933,20]
[378954201,1755083432433,-200.0,0.00022933,20]
[378954203,1755083432442,-200.0,0.00022933,20]
[378954205,1755083432452,-200.0,0.00022933,20]
[378954207,1755083432462,-320.0,0.00022933,20]
[378954210,1755083432473,-363.01,0.00023,2]
[378954212,1755083432482,-9755.16243468,0.00023207,2]
[378954214,1755083432491,-2319.8,0.00023296,10]
[378954216,1755083432501,-993.75107025,0.00023306,2]
[378954218,1755083432510,-500.0,0.00023306,2]
[378954220,1755083432519,-993.75107025,0.00023306,2]
[378954222,1755083432528,-993.75107025,0.00023306,2]
[378954224,1755083432537,-354.74841514,0.00023306,2]
[378954226,1755083432546,-993.75107025,0.00023306,2]
[378954228,1755083432556,-993.75107025,0.00023306,2]
[378954230,1755083432565,-993.75107025,0.00023306,2]
[378954232,1755083432575,-993.75107025,0.00023306,2]